fUST/lending_fUST_20260424
["ID","MTS","AMOUNT","RATE_DAILY","PERIOD"]
[421089741,1777008555104,-500.0,0.00011799,2]
[421089742,1777008555130,-500.0,0.00011799,2]
[421089743,1777008555155,-500.0,0.00011799,2]
[421089744,1777008555180,-500.0,0.00011799,2]
[421089745,1777008555206,-500.0,0.00011799,2]
[421089746,1777008555231,-500.0,0.00011799,2]
[421089747,1777008555255,-500.0,0.00011799,2]
[421089748,1777008555276,-2000.0,0.00011801,2]
[421089749,1777008555298,-2891.0462154,0.00011892,2]
[421089750,1777008555319,-2000.0,0.00011901,2]
[421089751,1777008555340,-366.27235186,0.00011901,2]
[421089752,1777008555364,-600.0,0.00011929,2]
[421089753,1777008555385,-621.05555018,0.00012001,2]
[421089754,1777008555407,-2998.01492537,0.0001244,2]
[421089755,1777008555430,-420.0,0.0001246,2]
[421089756,1777008555452,-620.05277751,0.00012601,2]
[421089757,1777008555476,-279.16713653,0.00012635,2]
[421089758,1777008555498,-249.0,0.00012842,2]
[421089759,1777008555521,-1680.0,0.00012865,2]
[421089760,1777008555542,-2465.82513465,0.00012988,2]
[421089844,1777008639028,-643.11634296,0.00012988,2]
[421089846,1777008639037,-340.47777712,0.00012988,2]
[421089851,1777008639083,-263.52222288,0.00012988,2]
[421089852,1777008639092,-368.14261472,0.00013233,14]
[421089854,1777008639102,-1346.3915989,0.00013536,2]
[421089887,1777008645254,-35.9705152,0.00013536,2]
[421089894,1777008647076,-1841.61019818,0.00013536,2]
[421089895,1777008647086,-226.26732998,0.00013617,2]
[421089896,1777008647095,-300.0,0.00013697,2]
[421089897,1777008647104,-1200.0,0.00013697,2]
[421089898,1777008647114,-500.0,0.00013698,2]
[421089899,1777008647124,-500.0,0.00013698,2]
[421089900,1777008647133,-500.0,0.00013698,2]
[421089901,1777008647141,-500.0,0.00013698,2]
[421089902,1777008647150,-500.0,0.00013698,2]
[421089903,1777008647160,-500.0,0.00013698,2]
[421089904,1777008647169,-500.0,0.00013698,2]
[421089905,1777008647178,-500.0,0.00013698,2]
[421089906,1777008647188,-1000.0,0.00013699,2]
[421089907,1777008647197,-500.0,0.00013869,2]
[421089908,1777008647207,-300.0,0.00013971,2]
[421089909,1777008647216,-300.0,0.00013971,2]
[421089910,1777008647226,-300.0,0.00013971,2]
[421089911,1777008647237,-300.0,0.00013971,2]
[421089912,1777008647247,-300.0,0.00013971,2]
[421089913,1777008647257,-300.0,0.00013971,2]
[421089914,1777008647266,-300.0,0.00013971,2]
[421089915,1777008647275,-300.0,0.00013971,2]
[421089916,1777008647285,-300.0,0.00013971,2]
[421089917,1777008647294,-300.0,0.00013971,2]
[421089918,1777008647303,-300.0,0.00013971,2]
[421089919,1777008647312,-300.0,0.00013971,2]
[421089920,1777008647321,-300.0,0.00013971,2]
[421089921,1777008647331,-300.0,0.00013971,2]
[421089922,1777008647341,-300.0,0.00013971,2]
[421089923,1777008647352,-3343.25928784,0.00014084,2]
[421089924,1777008647363,-600.0,0.00014249,2]
[421089925,1777008647373,-3466.95988149,0.00014632,2]
[421089926,1777008647382,-500.0,0.00014669,2]
[421089927,1777008647392,-500.0,0.00014999,2]
[421089928,1777008647401,-500.0,0.00014999,2]
[421089929,1777008647411,-420.0,0.0001501,2]
[421089930,1777008647421,-1680.0,0.00015067,2]
[421089931,1777008647431,-3595.2373971,0.0001518,2]
[421089932,1777008647441,-702.67721583,0.00015269,2]
[421089933,1777008647451,-500.0,0.00015369,2]
[421089934,1777008647460,-266.99544937,0.00015617,2]
[421089935,1777008647470,-720.0,0.00015674,2]
[421089936,1777008647480,-3728.2611808,0.00015728,2]
[421089937,1777008647490,-500.0,0.00015869,2]
[421089938,1777008647501,-702.67721577,0.00016204,2]
[421089939,1777008647511,-3866.20684448,0.00016276,2]
[421089940,1777008647521,-587.0,0.0001645,2]
[421089941,1777008647532,-2095.0,0.00016573,2]
[421089942,1777008647542,-4009.25649773,0.00016824,2]
[421089943,1777008647552,-702.67721577,0.0001714,2]
[421089944,1777008647563,-864.0,0.00017242,2]
[421089945,1777008647572,-4157.59898815,0.00017372,2]
[421089946,1777008647582,-179.79,0.00017495,2]
[421089947,1777008647591,-307.72356877,0.00017617,2]
[421089948,1777008647601,-169.07635363,0.00017629,2]
[421089949,1777008647611,-445.202766,0.00017629,2]
[421089950,1777008647623,-172.99588704,0.00017629,2]
[421089951,1777008647633,-537.6845,0.00017629,2]
[421089952,1777008647644,-537.6845,0.00017629,2]
[421089953,1777008647654,-2150.738,0.00017629,2]
[421089954,1777008647663,-557.5788265,0.00017684,2]
[421089955,1777008647673,-175.12,0.00017694,2]
[421089956,1777008647682,-578.20924308,0.00017739,2]
[421089957,1777008647691,-599.60298507,0.00017794,2]
[421089958,1777008647700,-621.78829552,0.00017849,2]
[421089959,1777008647711,-180.95,0.00017892,2]
[421089960,1777008647720,-224.74,0.00017892,2]
[421089961,1777008647730,-1063.0,0.000179,2]
[421089962,1777008647740,-644.79446246,0.00017904,2]
[421089963,1777008647749,-3094.44407141,0.0001792,2]
[421089964,1777008647759,-668.65185757,0.00017959,2]
[421089965,1777008647768,-1591.0,0.00018,2]
[421089966,1777008647777,-693.3919763,0.00018014,2]
[421089967,1777008647787,-510.0,0.00018027,2]
[421089968,1777008647796,-719.04747942,0.00018069,2]
[421089969,1777008647805,-702.67721577,0.00018075,2]
[421089970,1777008647815,-745.65223616,0.00018124,2]
[421089971,1777008647824,-307.0,0.00018141,2]
[421089972,1777008647833,-461.67526834,0.00018177,2]
[421089973,1777008647843,-547.69253568,0.00018177,2]
[421089974,1777008647852,-2230.315306,0.00018177,2]
[421089975,1777008647862,-773.2413689,0.00018179,2]
[421089976,1777008647871,-801.85129955,0.00018234,2]
[421089977,1777008647881,-831.51979763,0.00018289,2]
[421089978,1777008647890,-217.15,0.0001829,2]
[421089979,1777008647900,-269.69,0.0001829,2]
[421089980,1777008647910,-862.28603014,0.00018344,2]
[421089981,1777008647919,-1711.39,0.00018387,10]
[421089982,1777008647929,-150.44,0.00018387,10]
[421089983,1777008647938,-894.19061326,0.00018399,2]
[421089984,1777008647948,-927.27566595,0.00018454,2]
[421089985,1777008647957,-961.58486559,0.00018509,2]
[421089986,1777008647968,-3742.24,0.00018573,10]
[421089987,1777008647978,-160.0,0.0001862,2]
[421089988,1777008647987,-1767.792597,0.0001862,2]
[421089989,1777008647996,-3375.585195,0.0001862,2]
[421089990,1777008648007,-253.34,0.00018687,2]
[421089991,1777008648017,-314.64,0.00018687,2]
[421089992,1777008648026,-552.43736145,0.00018725,2]
[421089993,1777008648036,-2312.83697232,0.00018725,2]
[421089994,1777008648045,-602.124,0.00018794,2]
[421089995,1777008648055,-199.590023,0.00018794,7]
[421089996,1777008648065,-1134.6889487,0.000188,2]
[421089997,1777008648363,-6839.83519839,0.000188,2]
[421089998,1777008648407,-300.60884512,0.000188,2]
[421089999,1777008648430,-479.84473846,0.000188,2]
[421090003,1777009609126,-171.02632281,0.00011332,2]
[421090004,1777009625077,-1765.04024363,0.00011219,2]
[421090005,1777009639084,-643.33727121,0.00011219,2]
[421090006,1777009651105,-1297.18624778,0.00011219,2]
[421090007,1777009758085,-1294.43623738,0.00011219,2]
[421090008,1777009758109,-578.0,0.00011219,2]
[421090009,1777009758132,-215.77,0.000113,2]
[421090010,1777009758154,-2970.0608622,0.00011332,2]
[421090011,1777009758177,-242.92738541,0.00011447,2]
[421090012,1777009758199,-1200.0,0.00011562,2]
[421090013,1777009758221,-166.17,0.00011589,2]
[421090014,1777009758242,-516.60023906,0.00011799,2]
[421090015,1777009758263,-221.56,0.00011858,2]
[421090016,1777009758285,-300.0,0.00011912,2]
[421090017,1777009758305,-760.11508808,0.00011913,2]
[421090018,1777009758326,-300.0,0.00011913,2]
[421090019,1777009758347,-300.0,0.00011913,2]
[421090020,1777009758368,-300.0,0.00011913,2]
[421090021,1777009758390,-300.0,0.00011914,2]
[421090022,1777009758414,-300.0,0.00011914,2]
[421090023,1777009758438,-300.0,0.00011914,2]
[421090024,1777009758463,-300.0,0.00011914,2]
[421090025,1777009758486,-300.0,0.00011914,2]
[421090026,1777009758508,-300.0,0.00011914,2]
[421090027,1777009758534,-300.0,0.00011914,2]
[421090028,1777009758559,-300.0,0.00011914,2]
[421090029,1777009758582,-300.0,0.00011914,2]
[421090030,1777009758606,-300.0,0.00011914,2]
[421090031,1777009758629,-300.0,0.00011914,2]
[421090032,1777009758651,-300.0,0.00011914,2]
[421090033,1777009758674,-300.0,0.00011914,2]
[421090034,1777009758697,-300.0,0.00011914,2]
[421090035,1777009758720,-300.0,0.00011914,2]
[421090036,1777009758741,-276.95,0.00012127,2]
[421090037,1777009758765,-600.0,0.00012151,2]
[421090038,1777009758786,-332.34,0.00012396,2]
[421090039,1777009758806,-387.73,0.00012666,2]
[421090040,1777009758828,-1200.0,0.00012718,2]
[421090041,1777009758849,-609.31,0.00012935,2]
[421090042,1777009758870,-180.08652618,0.00012979,2]
[421090043,1777009758891,-351.33860792,0.00012979,2]
[421090044,1777009758913,-500.0,0.00012999,2]
[421090045,1777009758935,-214.41848106,0.00012999,2]
[421090046,1777009758957,-224.90711096,0.00012999,2]
[421090047,1777009758979,-500.0,0.00012999,2]
[421090048,1777009759005,-500.0,0.00012999,2]
[421090049,1777009759028,-500.0,0.00012999,2]
[421090050,1777009759053,-500.0,0.00012999,2]
[421090051,1777009759077,-500.0,0.00012999,2]
[421090052,1777009759102,-642.08409273,0.00012999,2]
[421090053,1777009759123,-85064.42868766,0.00013,2]
[421090090,1777009831892,-171.02632281,0.0001287,2]
[421090092,1777009831902,-602.0,0.0001287,2]
[421090094,1777009831911,-294.0,0.00012999,2]
[421090096,1777009831920,-300.0,0.00012999,2]
[421090098,1777009831929,-23297.57131234,0.00013,2]
[421090099,1777009831939,-209.86531976,0.00013133,2]
[421090101,1777009831949,-368.14261472,0.00013233,14]
[421090103,1777009831958,-300.0,0.00013259,2]
[421090105,1777009831968,-300.0,0.00013259,2]
[421090107,1777009831977,-300.0,0.00013259,2]
[421090109,1777009831987,-300.0,0.00013259,2]
[421090111,1777009831996,-300.0,0.00013259,2]
[421090113,1777009832005,-300.0,0.00013259,2]
[421090115,1777009832014,-300.0,0.00013259,2]
[421090116,1777009832023,-300.0,0.00013259,2]
[421090118,1777009832033,-300.0,0.00013259,2]
[421090120,1777009832042,-300.0,0.00013259,2]
[421090122,1777009832051,-300.0,0.00013259,2]
[421090124,1777009832061,-300.0,0.00013259,2]
[421090126,1777009832071,-300.0,0.00013259,2]
[421090128,1777009832080,-300.0,0.00013259,2]
[421090130,1777009832090,-300.0,0.00013259,2]
[421090132,1777009832099,-286.65431479,0.00013447,2]
[421090134,1777009832109,-270.6896241,0.0001365,2]
[421090136,1777009832118,-1500.0,0.00013699,2]
[421090138,1777009832127,-2281.879335,0.00013699,2]
[421090140,1777009832136,-1500.0,0.00013699,2]
[421090141,1777009832146,-2550.403157,0.00013699,2]
[421090143,1777009832155,-1000.0,0.00013699,2]
[421090145,1777009832165,-600.0,0.00013972,2]
[421090147,1777009832175,-420.0,0.00014256,2]
[421090149,1777009832184,-351.33860788,0.00014286,2]
[421090151,1777009832194,-720.0,0.00015369,2]
[421090153,1777009832203,-330.38124416,0.00015447,2]
[421090155,1777009832214,-351.33860788,0.00015594,2]
[421090157,1777009832223,-587.0,0.00015634,2]
[421090159,1777009832232,-351.33860788,0.00016901,2]
[421090161,1777009832242,-864.0,0.00016906,2]
[421090163,1777009832251,-234.76,0.00017222,2]
[421090165,1777009832260,-374.10817353,0.00017447,2]
[421090167,1777009832270,-537.6845,0.00017922,2]
[421090169,1777009832279,-2150.738,0.00017922,2]
[421090171,1777009832289,-490.61140327,0.00017977,2]
[421090173,1777009832298,-150.0,0.00018,2]
[421090175,1777009832307,-351.33860788,0.00018209,2]
[421090177,1777009832316,-1553.2502276,0.00018335,2]
[421090179,1777009832325,-5001.276718,0.00018335,2]
[421090181,1777009832334,-184.7296927,0.00018335,2]
[421090183,1777009832343,-1444.14693199,0.0001847,2]
[421090236,1777009839301,-144.13180531,0.0001847,2]
[421090248,1777009840718,-2033.0,0.00017,5]
[421090249,1777009840729,-642.0365687,0.0001847,2]
[421090250,1777009840738,-481.699,0.00018633,2]
[421090251,1777009840749,-3637.39619654,0.00018703,2]
[421090262,1777009843020,-3355.05045679,0.00018703,2]
[421090263,1777009843077,-256.2,0.00018703,2]
[421090264,1777009843183,-1240.0,0.00018703,2]
[421090265,1777009843199,-588.11862322,0.00018703,2]
[421090277,1777009846497,-6455.12736062,0.00018703,2]
[421090284,1777010834386,-300.0,9.236e-05,2]
[421090285,1777010834409,-5000.0,9.237e-05,2]
[421090286,1777010834430,-549.0,9.237e-05,2]
[421090287,1777010834453,-233.33513836,9.377e-05,2]
[421090288,1777010834474,-300.0,9.422e-05,2]
[421090289,1777010834497,-300.0,9.422e-05,2]
[421090290,1777010834520,-300.0,9.422e-05,2]
[421090291,1777010834541,-167.0,9.422e-05,2]
[421090292,1777010834561,-500.0,9.422e-05,2]
[421090293,1777010834583,-500.0,9.422e-05,2]
[421090294,1777010834603,-500.0,9.422e-05,2]
[421090295,1777010834624,-277.15512399,9.422e-05,2]
[421090296,1777010834644,-500.0,9.422e-05,2]
[421090297,1777010834665,-500.0,9.422e-05,2]
[421090298,1777010834687,-500.0,9.422e-05,2]
[421090299,1777010834709,-500.0,9.422e-05,2]
[421090300,1777010834729,-508.59300216,9.422e-05,2]
[421090301,1777010834749,-500.0,9.422e-05,2]
[421090302,1777010834771,-500.0,9.422e-05,2]
[421090303,1777010834792,-162.96251298,9.422e-05,2]
[421090304,1777010834813,-500.0,9.422e-05,2]
[421090305,1777010834835,-500.0,9.422e-05,2]
[421090306,1777010835064,-500.0,9.422e-05,2]
[421090307,1777010835087,-500.0,9.422e-05,2]
[421090308,1777010835108,-500.0,9.422e-05,2]
[421090309,1777010835131,-500.0,9.422e-05,2]
[421090310,1777010835152,-500.0,9.422e-05,2]
[421090311,1777010835175,-500.0,9.422e-05,2]
[421090312,1777010835195,-500.0,9.422e-05,2]
[421090313,1777010835218,-241.34898613,9.422e-05,2]
[421090314,1777010835241,-500.0,9.422e-05,2]
[421090315,1777010835263,-500.0,9.422e-05,2]
[421090316,1777010835283,-488.63977778,9.422e-05,2]
[421090317,1777010835307,-401.70580437,9.422e-05,2]
[421090318,1777010839073,-98.29419563,9.422e-05,2]
[421090319,1777010839096,-500.0,9.422e-05,2]
[421090320,1777010839118,-500.0,9.422e-05,2]
[421090321,1777010839140,-500.0,9.422e-05,2]
[421090322,1777010839162,-9.57421443,9.422e-05,2]
[421090323,1777010948129,-551.0,9.327e-05,2]
[421090324,1777010948153,-5000.0,9.328e-05,2]
[421090325,1777010948175,-234.25177832,9.377e-05,2]
[421090326,1777010948197,-300.0,9.424e-05,2]
[421090327,1777010948219,-1909.63759232,9.425e-05,2]
[421090328,1777010955113,-10074.25771376,9.425e-05,2]
[421090329,1777010963100,-358.92154472,9.331e-05,2]
[421090330,1777010974080,-1202.18729702,9.331e-05,2]
[421090331,1777010974103,-500.0,9.424e-05,2]
[421090332,1777010974126,-500.0,9.424e-05,2]
[421090333,1777010974149,-500.0,9.424e-05,2]
[421090334,1777010974172,-500.0,9.424e-05,2]
[421090335,1777010974199,-500.0,9.424e-05,2]
[421090336,1777010974223,-500.0,9.424e-05,2]
[421090337,1777010974246,-500.0,9.424e-05,2]
[421090338,1777010974269,-500.0,9.424e-05,2]
[421090339,1777010974292,-500.0,9.424e-05,2]
[421090340,1777010974314,-500.0,9.424e-05,2]
[421090341,1777010974337,-500.0,9.424e-05,2]
[421090342,1777010974360,-500.0,9.424e-05,2]
[421090343,1777010974382,-500.0,9.424e-05,2]
[421090344,1777010974410,-500.0,9.424e-05,2]
[421090345,1777010974432,-524.13489862,9.424e-05,2]
[421090346,1777010974455,-500.0,9.424e-05,2]
[421090347,1777010974478,-500.0,9.424e-05,2]
[421090348,1777010974502,-500.0,9.424e-05,2]
[421090349,1777010974524,-500.0,9.424e-05,2]
[421090350,1777010974546,-500.0,9.424e-05,2]
[421090351,1777010974569,-500.0,9.424e-05,2]
[421090352,1777010974591,-500.0,9.424e-05,2]
[421090353,1777010974614,-500.0,9.424e-05,2]
[421090354,1777010974634,-4177.04231635,9.425e-05,2]
[421090402,1777011039158,-499.99999999,9.424e-05,2]
[421090403,1777011039168,-249.0,9.424e-05,2]
[421090404,1777011039178,-300.0,9.424e-05,2]
[421090405,1777011039187,-162.44172773,9.424e-05,2]
[421090406,1777011039198,-1037.55827227,9.424e-05,2]
[421090407,1777011039208,-552.0,9.424e-05,2]
[421090408,1777011039217,-220.95997531,9.424e-05,2]
[421090409,1777011039227,-500.0,9.424e-05,2]
[421090411,1777011039236,-500.0,9.424e-05,2]
[421090413,1777011039245,-500.0,9.424e-05,2]
[421090415,1777011039255,-500.0,9.424e-05,2]
[421090417,1777011039265,-500.0,9.424e-05,2]
[421090419,1777011039274,-500.0,9.424e-05,2]
[421090421,1777011039283,-500.0,9.424e-05,2]
[421090423,1777011039292,-500.0,9.424e-05,2]
[421090425,1777011039301,-217.12665921,9.424e-05,2]
[421090427,1777011039311,-500.0,9.424e-05,2]
[421090429,1777011039320,-500.0,9.424e-05,2]
[421090432,1777011039329,-500.0,9.424e-05,2]
[421090435,1777011039338,-500.0,9.424e-05,2]
[421090438,1777011039349,-500.0,9.424e-05,2]
[421090441,1777011039359,-500.0,9.424e-05,2]
[421090444,1777011039368,-500.0,9.424e-05,2]
[421090446,1777011039376,-500.0,9.424e-05,2]
[421090448,1777011039385,-500.0,9.424e-05,2]
[421090450,1777011039395,-500.0,9.424e-05,2]
[421090452,1777011039405,-500.0,9.424e-05,2]
[421090454,1777011039414,-500.0,9.424e-05,2]
[421090456,1777011039423,-500.0,9.424e-05,2]
[421090458,1777011039432,-500.0,9.424e-05,2]
[421090460,1777011039441,-500.0,9.424e-05,2]
[421090462,1777011039450,-500.0,9.424e-05,2]
[421090464,1777011039459,-500.0,9.424e-05,2]
[421090466,1777011039469,-500.0,9.424e-05,2]
[421090468,1777011039478,-500.0,9.424e-05,2]
[421090470,1777011039488,-500.0,9.424e-05,2]
[421090472,1777011039498,-15279.55546401,9.425e-05,2]
[421090474,1777011039507,-300.0,9.612e-05,2]
[421090476,1777011039517,-300.0,9.612e-05,2]
[421090478,1777011039526,-300.0,9.612e-05,2]
[421090480,1777011039536,-300.0,9.612e-05,2]
[421090482,1777011039545,-300.0,9.612e-05,2]
[421090484,1777011039554,-300.0,9.612e-05,2]
[421090486,1777011039563,-300.0,9.612e-05,2]
[421090488,1777011039572,-300.0,9.612e-05,2]
[421090490,1777011039581,-300.0,9.612e-05,2]
[421090492,1777011039591,-300.0,9.612e-05,2]
[421090493,1777011039600,-300.0,9.612e-05,2]
[421090495,1777011039609,-300.0,9.612e-05,2]
[421090497,1777011039618,-300.0,9.612e-05,2]
[421090499,1777011039628,-300.0,9.612e-05,2]
[421090501,1777011039637,-300.0,9.612e-05,2]
[421090503,1777011039646,-2788.39439856,0.0001,2]
[421090505,1777011039655,-420.0,0.00010366,2]
[421090507,1777011039664,-1680.0,0.00010366,2]
[421090508,1777011039673,-276.41709842,0.00011376,2]
[421090510,1777011039682,-587.0,0.00011403,2]
[421090511,1777011039691,-600.0,0.0001163,2]
[421090513,1777011039702,-300.0,0.00012,2]
[421090515,1777011039711,-823.0,0.00012543,2]
[421090516,1777011039720,-500.0,0.00012738,2]
[421090517,1777011039730,-500.0,0.00012738,2]
[421090518,1777011039742,-480.85882639,0.00012738,2]
[421090519,1777011039753,-720.0,0.00012793,2]
[421090520,1777011039765,-417.43684395,0.000129,2]
[421090521,1777011039774,-417.43684389,0.000129,2]
[421090522,1777011039786,-417.43684389,0.000129,2]
[421090523,1777011039798,-318.58241851,0.00013377,2]
[421090524,1777011039808,-178.48,0.00013682,2]
[421090525,1777011039819,-1000.0,0.00013699,2]
[421090526,1777011039829,-1152.0,0.00013798,2]
[421090527,1777011039839,-223.1,0.00013993,2]
[421090528,1777011039850,-351.51408971,0.00014,2]
[421090529,1777011039859,-864.0,0.00014072,2]
[421090530,1777011039869,-1000.0,0.000143,2]
[421090531,1777011039878,-1000.0,0.000143,2]
[421090532,1777011039887,-267.72,0.00014304,2]
[421090533,1777011039897,-417.43684389,0.00014433,2]
[421090534,1777011039907,-312.34,0.00014614,2]
[421090535,1777011039917,-624.69,0.00014925,2]
[421090536,1777011039928,-500.0,0.00014999,2]
[421090537,1777011039938,-334.45542144,0.00014999,2]
[421090538,1777011039948,-1030.08692701,0.00015,2]
[421090539,1777011039958,-152.58697351,0.00015,2]
[421090540,1777011039967,-59995.33812335,0.00015,2]
[421090541,1777011039999,-1515.15768585,0.00015,2]
[421090542,1777011040010,-16055.60515716,0.00015,2]
[421090543,1777011040023,-2866.49295455,0.00015,2]
[421090544,1777011040036,-16869.996491,0.00015,2]
[421090545,1777011040045,-824.0,0.00015177,2]
[421090546,1777011040054,-296.00395296,0.00015277,2]
[421090547,1777011040063,-360.74773861,0.00015377,2]
[421090548,1777011040073,-1000.0,0.0001548,2]
[421090549,1777011040082,-296.00395296,0.00015585,2]
[421090550,1777011040092,-296.00395296,0.00015893,2]
[421090551,1777011040101,-417.43684389,0.00016074,2]
[421090552,1777011040111,-296.00395296,0.000162,2]
[421090553,1777011040120,-296.00395296,0.00016508,2]
[421090554,1777011040130,-275.40934944,0.00016608,2]
[421090555,1777011040140,-123046.49377431,0.00016608,2]
[421090563,1777011040935,-396.27900709,0.00016608,2]
[421090564,1777011040947,-1175.66510949,0.00016608,2]
[421090565,1777011041282,-3732.37204236,0.00016608,2]
[421090566,1777011041294,-1202.22657072,0.00016608,2]
[421090594,1777011045717,-5498.16624519,0.00016608,2]
[421090606,1777011046760,-26154.51435052,0.00016608,2]
[421090607,1777011344493,-180.63686122,9.325e-05,2]
[421090608,1777011344516,-228.39428538,9.42e-05,2]
[421090609,1777011344539,-5000.0,9.42e-05,2]
[421090610,1777011344560,-552.0,9.42e-05,2]
[421090611,1777011344582,-300.0,9.801e-05,2]
[421090612,1777011344603,-300.0,9.801e-05,2]
[421090613,1777011344626,-300.0,9.801e-05,2]
[421090614,1777011344647,-1126.0,9.801e-05,2]
[421090615,1777011344670,-300.0,9.802e-05,2]
[421090616,1777011344693,-300.0,9.802e-05,2]
[421090617,1777011344715,-300.0,9.802e-05,2]
[421090618,1777011344738,-300.0,9.802e-05,2]
[421090619,1777011344760,-300.0,9.802e-05,2]
[421090620,1777011344783,-300.0,9.802e-05,2]
[421090621,1777011344806,-300.0,9.802e-05,2]
[421090622,1777011344830,-300.0,9.802e-05,2]
[421090623,1777011344855,-300.0,9.802e-05,2]
[421090624,1777011344877,-300.0,9.802e-05,2]
[421090625,1777011344899,-300.0,9.802e-05,2]
[421090626,1777011344921,-300.0,9.802e-05,2]
[421090627,1777011344943,-300.0,9.802e-05,2]
[421090628,1777011344967,-300.0,9.802e-05,2]
[421090629,1777011344991,-300.0,9.802e-05,2]
[421090630,1777011345013,-300.0,0.00010781,2]
[421090631,1777011345036,-269.50525675,0.0001142,2]
[421090632,1777011345057,-1282.93540219,0.00011901,2]
[421090633,1777011346150,1120.19969956,9.232e-05,2]
[421090641,1777011893218,-620.05277751,0.00012001,2]
[421090642,1777011893241,-589.0,0.00012001,2]
[421090661,1777012032097,-185.03738658,0.00012457,2]
[421090662,1777012040127,-740.17807754,0.00012457,2]
[421090672,1777012148094,-294.59666822,0.00012209,2]
[421090673,1777012153086,-482.48306437,0.00012209,2]
[421090732,1777012232816,-82.24332596,0.00012209,2]
[421090735,1777012232833,-1200.43182314,0.00012209,2]
[421090819,1777012238829,-2015.02965419,0.00012209,2]
[421090820,1777012238840,-592.0,0.00012209,2]
[421090821,1777012238851,-218.43629454,0.00012271,2]
[421090822,1777012238861,-298.80141791,0.00012332,2]
[421090823,1777012238871,-505.0,0.00012704,2]
[421090824,1777012238881,-300.0,0.00012705,2]
[421090825,1777012238892,-300.0,0.00012705,2]
[421090826,1777012238901,-300.0,0.00012705,2]
[421090827,1777012238911,-300.0,0.00012705,2]
[421090828,1777012238921,-300.0,0.00012705,2]
[421090829,1777012238931,-300.0,0.00012705,2]
[421090830,1777012238941,-300.0,0.00012705,2]
[421090831,1777012238951,-300.0,0.00012705,2]
[421090832,1777012238961,-300.0,0.00012705,2]
[421090833,1777012238971,-300.0,0.00012705,2]
[421090834,1777012238981,-300.0,0.00012705,2]
[421090835,1777012238991,-300.0,0.00012705,2]
[421090836,1777012239001,-300.0,0.00012705,2]
[421090837,1777012239011,-300.0,0.00012705,2]
[421090838,1777012239022,-300.0,0.00012705,2]
[421090839,1777012239032,-1000.0,0.00013699,2]
[421090840,1777012239042,-257.75482756,0.00014271,2]
[421090841,1777012239054,-1364.934581,0.00015839,2]
[421090842,1777012239065,-500.0,0.00015864,2]
[421090843,1777012239075,-500.0,0.00015864,2]
[421090844,1777012239086,-336.01498874,0.00015864,2]
[421090845,1777012239097,-500.0,0.00015864,2]
[421090846,1777012239107,-500.0,0.00015864,2]
[421090847,1777012239117,-500.0,0.00015864,2]
[421090848,1777012239127,-500.0,0.00015864,2]
[421090849,1777012239137,-500.0,0.00015864,2]
[421090850,1777012239146,-500.0,0.00015864,2]
[421090851,1777012239156,-421.71266592,0.00015864,2]
[421090852,1777012239166,-385.359,0.00015864,2]
[421090853,1777012239175,-501.32346061,0.00015864,2]
[421090854,1777012239185,-28213.36734589,0.00015865,2]
[421090855,1777012239197,-6006.88351959,0.00015865,2]
[421090856,1777012239209,-2118.66704675,0.00015865,2]
[421090857,1777012239242,-20.55970962,0.00015865,2]
[421090858,1777012239254,-703.61211393,0.00015865,2]
[421090859,1777012239267,-3139.97818459,0.00015865,2]
[421090863,1777012241489,-880.04567969,0.00015865,2]
[421090868,1777012243714,-2197.09419815,0.00015865,2]
[421090869,1777012243771,-163.16100756,0.00015865,2]
[421090870,1777012243783,-24659.91941323,0.00015865,2]
[421090871,1777012243793,-1164.9376707,0.00015901,2]